Cogmind - Beta 11 X8 @@@ ROGUE MODE // 2021.12.19 @ 18:39:35 Player: Yosh Result: Destroyed by as-15087 with Assembled Rifle Performance ------------- Evolutions (1) 500 Regions Visited (5) 1000 Robots Destroyed (42) 210 Value Destroyed (1244) 1244 Prototype IDs (4) 80 Alien Tech Used (0) 0 Bonus (85) 85 TOTAL SCORE: 3119 Bonus ------- High Alert Combat Kills 85 Cogmind --------- Core Integrity 0/400 Matter 295/300 Energy 99/100 System Corruption 6% Temperature Cool (0) Movement Core (50) Location -9/Exiles Parts ------- > --- POWER (1) -------- (None) > --- PROPULSION (2) --- (None) > --- UTILITY (3) ------ (None) > --- WEAPON (3) ------- (None) > --- INVENTORY (5) ---- Fission Core Advanced Treads Advanced Treads Cooling System Mini Grenade Launcher Peak State ------------ > --- POWER ------------ Heavy Ion Engine > --- PROPULSION ------- Advanced Treads Advanced Treads > --- UTILITY ---------- Large Storage Unit Transport Network Coupler Hardlight Generator > --- WEAPON ----------- EM Pulse Gun Light EM Pulse Cannon Light EM Pulse Cannon > --- INVENTORY -------- Heavy Ion Engine Heavy Ion Engine Light Treads Light Treads Light Treads Light Treads Light Treads Advanced Treads Advanced Treads Cooling System Cooling System Experimental Sensor Array Light EM Pulse Cannon Light EM Pulse Cannon Rocket Launcher [Rating: 22] Favorites ----------- Power Ion Engine Engine Ion Engine Propulsion Light Treads Treads Light Treads Leg Aluminum Leg Utility Transport Network Coupler Device Cooling System Storage Small Storage Unit Processor Transport Network Coupler Protection Light Armor Plating Weapon Light EM Pulse Cannon Energy Gun EM Pulse Gun Energy Cannon Light EM Pulse Cannon Launcher Rocket Launcher Build | -11 -10 -10 -9 -9 -9 ------- Run | Scr Mat Min Mat Min Exi Slots Evolved 2 | . . . 2 . . Power . | . . . . . . Propulsion . | . . . . . . Utility 1 | . . . 1 . . Weapon 1 | . . . 1 . . Parts Attached 39 | 6 4 1 27 . 1 Power 6 | 1 . . 5 . . Engine 6 | 1 . . 5 . . Core . | . . . . . . Reactor . | . . . . . . Propulsion 7 | 2 2 . 3 . . Treads 5 | . 2 . 3 . . Leg 2 | 2 . . . . . Wheel . | . . . . . . Hover . | . . . . . . Flight . | . . . . . . Utility 14 | 1 1 1 10 . 1 Device 4 | . 1 . 3 . . Storage 2 | 1 . . 1 . . Processor 1 | . . 1 . . . Hackware . | . . . . . . Protection 7 | . . . 6 . 1 Artifact . | . . . . . . Weapon 12 | 2 1 . 9 . . Energy Gun 3 | 2 1 . . . . Energy Cannon 7 | . . . 7 . . Ballistic Gun . | . . . . . . Ballistic Cannon . | . . . . . . Launcher 2 | . . . 2 . . Special Weapon . | . . . . . . Impact Weapon . | . . . . . . Slashing Weapon . | . . . . . . Piercing Weapon . | . . . . . . Special Melee Weapon . | . . . . . . Unidentified Prototypes 2 | . . . 2 . . Corrupted Parts 2 | . . 1 1 . . System Corruption 7 | . . 1 6 . . Parts Lost 8 | . . . 3 . 5 Power . | . . . . . . Propulsion . | . . . . . . Utility 4 | . . . 1 . 3 Weapon 4 | . . . 2 . 2 Highest Loss Streak 5 | . . . 2 . 5 Average Slot Usage (%) 98 | . 99 100 97 100 90 Engine 12 | . 14 14 11 11 10 Treads 24 | . 27 28 22 22 21 Device 4 | . 13 6 . . . Storage 12 | . 14 14 11 11 10 Processor 7 | . . 7 11 11 8 Protection 5 | . . . 8 11 9 Energy Gun 15 | . 28 28 11 . . Energy Cannon 14 | . . . 20 33 28 Naked Turns 17 | . . . . . 17 Heaviest Build 43 | 14 16 16 43 43 43 Greatest Support 44 | 20 40 40 44 44 44 Greatest Overweight (x) 2 | 2 . . 1 . . Average Overweight (x) . | . . . . . . Largest Inventory Capacity 15 | 8 8 8 15 15 15 Average Capacity 11 | 6 8 8 12 15 14 Most Carried 15 | 6 8 8 15 15 15 Average Carried 10 | 4 7 7 12 14 14 Final Capacity 15 | 8 8 8 15 15 5 Final Carried 15 | 6 8 8 15 15 5 Class Distribution -------------------- 48% | Mutant 43% | Tank 5% | Skirmisher 3% | Scavenger-Tank Dominant Class ---------------- Mutant | -10/Materials Mutant | -10/Mines Tank | -9/Materials Tank | -9/Mines Tank | -9/Exiles Resources | -11 -10 -10 -9 -9 -9 ----------- Run | Scr Mat Min Mat Min Exi Matter Collected 679 | 242 58 10 341 28 . Remotely . | . . . . . . Salvage Created 1687 | . 242 94 1351 . . Parts 111 | . 17 5 89 . . Haulers Intercepted 5 | . 1 . 4 . . Recyclers Shooed . | . . . . . . Parts Field Recycled . | . . . . . . Retrieved Matter . | . . . . . . Parts Self-Destructed . | . . . . . . Prevented . | . . . . . . Kills | -11 -10 -10 -9 -9 -9 ------- Run | Scr Mat Min Mat Min Exi Combat Hostiles Destroyed 33 | . 4 2 26 1 . Melee 1 | . . . 1 . . Guns 11 | . 4 2 5 . . Cannons 15 | . . . 14 1 . AOE 6 | . . . 6 . . Classes Destroyed 9 | . 3 . 5 1 . Worker 2 | . 1 . 1 . . Builder 2 | . . . 2 . . Hauler 5 | . 1 . 4 . . Swarmer 6 | . . . 6 . . Grunt 16 | . 4 2 10 . . Brawler 1 | . . . 1 . . Duelist 1 | . . . 1 . . Sentry 8 | . . . 8 . . Demolisher 1 | . . . . 1 . Best Kill Streak 7 | . 4 2 7 1 . Combat Bots Only 6 | . 2 2 6 1 . Max Kills in Single Turn 4 | . 1 1 4 1 . Gunslinging . | . . . . . . Exploded 3 | . . . 3 . . Melee 1 | . . . 1 . . Uniques/NPCs Destroyed . | . . . . . . Combat | -11 -10 -10 -9 -9 -9 -------- Run | Scr Mat Min Mat Min Exi Damage Taken 1629 | . 102 18 695 39 775 Core 441 | . 38 . 32 26 345 Absorbed by Shields . | . . . . . . Core Remaining (%) 92 | 100 . 84 . . . Volleys Fired 61 | . 13 2 44 1 1 Largest 3 | . 2 2 3 3 3 Hottest 168 | . 90 80 168 168 168 Shots Fired 161 | . 26 4 124 3 4 Gun 78 | . 26 4 48 . . Cannon 79 | . . . 72 3 4 Launcher 4 | . . . 4 . . Special . | . . . . . . Kinetic . | . . . . . . Thermal 6 | . 6 . . . . Explosive 4 | . . . 4 . . Electromagnetic 151 | . 20 4 120 3 4 Robot Hit Streak 21 | . 9 6 21 5 2 Robot Miss Streak 3 | . 1 . 3 . 1 Penetration Max . | . . . . . . Secondary Targets . | . . . . . . Shots Hit Robots 100 | . 18 3 76 1 2 Core Hits 61 | . 12 2 45 1 1 Critical Kills . | . . . . . . Critical Parts Destroyed . | . . . . . . Critical Strikes 1 | . 1 . . . . Corrupt 1 | . 1 . . . . Melee Attacks . | . . . . . . Impact . | . . . . . . Slashing . | . . . . . . Piercing . | . . . . . . Sneak Attacks . | . . . . . . Combat Hostiles . | . . . . . . Follow-up Attacks . | . . . . . . Damage Inflicted 2359 | . 292 39 1973 19 36 Guns 712 | . 248 39 425 . . Cannons 1066 | . . . 1011 19 36 Explosions 556 | . 44 . 512 . . Melee . | . . . . . . Ramming 25 | . . . 25 . . Kinetic . | . . . . . . Thermal 170 | . 93 . 77 . . Explosive 435 | . . . 435 . . Electromagnetic 1729 | . 199 39 1436 19 36 Impact . | . . . . . . Slashing . | . . . . . . Piercing . | . . . . . . Highest Corruption 6 | . . 1 6 6 6 Average Corruption 5 | . . 1 6 6 6 Corruption Purged . | . . . . . . Effects 48 | . . 2 27 13 6 Message Errors 13 | . . 2 8 2 1 Matter Fused 13 | . . . 7 5 1 Heat Flow Errors 4 | . . . 1 3 . Energy Discharges 6 | . . . 2 3 1 Parts Rejected 1 | . . . 1 . . Data Loss (minor) 5 | . . . 3 . 2 Data Loss (major) 4 | . . . 4 . . Misfires 2 | . . . 1 . 1 Overload Shots . | . . . . . . Overflow Damage 17 | . . . 17 . . Projectiles . | . . . . . . Explosions 17 | . . . 17 . . Melee . | . . . . . . Knockbacks . | . . . . . . Impact . | . . . . . . Kinetic . | . . . . . . Secondary . | . . . . . . Self-Inflicted Damage . | . . . . . . Shots . | . . . . . . Rammed 7 | . . . 7 . . Targets Rammed 7 | . . . 7 . . Kicked . | . . . . . . Crushed . | . . . . . . Highest Temperature 368 | . 11 . 368 194 131 Average Temperature 113 | . 11 . 120 79 47 Received Heat Transfer 437 | . 78 9 210 . 140 Effects 1 | . . . 1 . . Shutdowns 1 | . . . 1 . . Siege Activations . | . . . . . . Robots Corrupted . | . . . . . . Combat Hostiles . | . . . . . . Parts Fried 8 | . 1 . 7 . . Impact Corruptions . | . . . . . . Robots Melted . | . . . . . . Combat Hostiles . | . . . . . . Parts Melted . | . . . . . . Heat Transferred 248 | . 148 . 100 . . Parts Sabotaged . | . . . . . . Parts Stolen . | . . . . . . Parts Stripped . | . . . . . . Power Chain Reactions 3 | . 1 . 2 . . Missiles Intercepted . | . . . . . . Alert | -11 -10 -10 -9 -9 -9 ------- Run | Scr Mat Min Mat Min Exi Peak Influence 596 | . 150 53 596 189 . Initial 154 | . . . . 154 . Average 149 | . 44 20 341 117 . Maximum Alert Level 2 | . . . 2 . . Low Security (%) 72 | 100 100 100 17 100 . Level 1 14 | . . . 42 . . Level 2 13 | . . . 40 . . Level 3 . | . . . . . . Level 4 . | . . . . . . Level 5 . | . . . . . . High Security . | . . . . . . Max Security . | . . . . . . Squads Dispatched 5 | . . . 5 . . Investigation 2 | . . . 2 . . Extermination . | . . . . . . Reinforcement 2 | . . . 2 . . Assault 1 | . . . 1 . . Garrison . | . . . . . . Intercept . | . . . . . . Construction Impeded . | . . . . . . Haulers Reinforced . | . . . . . . Active Scanning Responses . | . . . . . . Cargo Convoy Interrupts . | . . . . . . Stealth | -11 -10 -10 -9 -9 -9 --------- Run | Scr Mat Min Mat Min Exi Distress Signals 4 | . . . 2 2 . Communications Jammed . | . . . . . . Distress Signals . | . . . . . . Times Spotted 73 | . 11 2 41 7 12 Peak Tracking Total 12 | . 3 2 7 7 12 Tactical Retreats 4 | . . . 1 1 2 Traps | -11 -10 -10 -9 -9 -9 ------- Run | Scr Mat Min Mat Min Exi Traps Triggered 1 | . . . 1 . . Indirectly . | . . . . . . Trap Hack Attempts . | . . . . . . Triggered . | . . . . . . Disarmed . | . . . . . . Reprogrammed . | . . . . . . Reused . | . . . . . . Traps Extracted . | . . . . . . Installed . | . . . . . . Triggered . | . . . . . . Machines | -11 -10 -10 -9 -9 -9 ---------- Run | Scr Mat Min Mat Min Exi Machines Disabled 8 | . . . 7 . 1 Max in Single Turn 2 | . . . 2 . 1 Machines Sabotaged . | . . . . . . Garrisons Compromised . | . . . . . . Overloaded Fab Kills . | . . . . . . Hacking | -11 -10 -10 -9 -9 -9 --------- Run | Scr Mat Min Mat Min Exi Machines Accessed 10 | . 4 . 5 . 1 Terminals 6 | . 3 . 3 . . Fabricators . | . . . . . . Repair Stations 1 | . . . 1 . . Recycling Units 2 | . 1 . 1 . . Scanalyzers . | . . . . . . Garrison Access . | . . . . . . Total Hacks 45 | . 9 . 13 . 23 Successful 33 | . 5 . 5 . 23 Failed 12 | . 4 . 8 . . Catastrophic 2 | . 1 . 1 . . Database Lockouts . | . . . . . . Manual 7 | . 2 . 5 . . Terminals 17 | . 8 . 9 . . Fabricators . | . . . . . . Repair Stations 2 | . . . 2 . . Recycling Units 3 | . 1 . 2 . . Scanalyzers . | . . . . . . Garrison Access . | . . . . . . Terminal Hacks 29 | . 3 . 3 . 23 Record 23 | . . . . . 23 Robot Analysis 1 | . 1 . . . . Prototype ID Bank 1 | . . . 1 . . Unreport Threat 1 | . . . 1 . . Dispatch Records 1 | . 1 . . . . Hauler Manifests 1 | . 1 . . . . Zone Layout 1 | . . . 1 . . Fabricator Hacks . | . . . . . . Repair Station Hacks 2 | . . . 2 . . Scan Component 1 | . . . 1 . . Repair 1 | . . . 1 . . Recycling Unit Hacks 1 | . 1 . . . . Report Inventory 1 | . 1 . . . . Scanalyzer . | . . . . . . Garrison Access Hacks . | . . . . . . Unauthorized Hacks 1 | . 1 . . . . Terminals 1 | . 1 . . . . Botnet 1 | . 1 . . . . Fabricators . | . . . . . . Repair Stations . | . . . . . . Recycling Units . | . . . . . . Scanalyzers . | . . . . . . Garrison Access . | . . . . . . Data Cores Recovered . | . . . . . . Used . | . . . . . . Hacking Detections 8 | . 3 . 5 . . Full Trace Events 1 | . . . 1 . . Feedback Events . | . . . . . . Feedback Blocked . | . . . . . . Robot Schematics Acquired . | . . . . . . Robots Built . | . . . . . . Authchips . | . . . . . . Time . | . . . . . . Total Robot Build Rating . | . . . . . . Part Schematics Acquired . | . . . . . . Parts Built . | . . . . . . Authchips . | . . . . . . Time . | . . . . . . Total Part Build Rating . | . . . . . . Parts Repaired 1 | . . . 1 . . Time 26 | . . . 26 . . Parts Recycled . | . . . . . . Recycled Matter . | . . . . . . Retrieved Matter . | . . . . . . Retrieved Components . | . . . . . . Parts Scanalyzed . | . . . . . . Part Schematics Acquired . | . . . . . . Parts Damaged . | . . . . . . Bothacking | -11 -10 -10 -9 -9 -9 ------------ Run | Scr Mat Min Mat Min Exi Used RIF Installer . | . . . . . . Robots Hacked . | . . . . . . Non-combat . | . . . . . . Combat . | . . . . . . Robot Hacks Applied . | . . . . . . Relay Couplers Released . | . . . . . . Fabnet Peak Effective % . | . . . . . . Robots Rewired . | . . . . . . Allies Hacked . | . . . . . . Hacks Repelled . | . . . . . . Allies | -11 -10 -10 -9 -9 -9 -------- Run | Scr Mat Min Mat Min Exi Total Allies 4 | . . 1 . 3 . Largest Group 3 | . . 1 . 3 3 Highest-Rated Group 40 | . . 31 . 40 40 Highest-Rated Ally 31 | . . 31 . 16 16 Total Orders . | . . . . . . Ally Attacks 17 | . . 5 . . 12 Total Damage 210 | . . 106 . . 104 Kills 1 | . . . . . 1 Allies Corrupted . | . . . . . . Allies Melted . | . . . . . . Intel | -11 -10 -10 -9 -9 -9 ------- Run | Scr Mat Min Mat Min Exi Robot Analysis Total 1 | . 1 . . . . Derelict Logs Recovered 1 | . . . . 1 . Drone Launches . | . . . . . . Drone Recoveries . | . . . . . . Exploration | -11 -10 -10 -9 -9 -9 ------------- Run | Scr Mat Min Mat Min Exi Turns Passed 3497 | 85 667 821 1073 571 280 Spaces Moved 1941 | 55 371 481 483 338 213 Core 44 | 9 . . . . 35 Treads 1835 | . 355 481 483 338 178 Legs 62 | 46 16 . . . . Wheels . | . . . . . . Hover . | . . . . . . Flight . | . . . . . . Fastest Speed 50 | 50 120 160 145 145 50 Average Speed 150 | 116 158 160 152 145 129 Slowest Speed 240 | 150 160 160 240 145 145 Overloaded Moves . | . . . . . . Propulsion Burnouts . | . . . . . . Robots Hopped . | . . . . . . Cave-ins Triggered . | . . . . . . Exploration Rate (%) 53 | 5 69 66 54 69 57 Regions Visited 5 Branch Regions 3 Pre-discovered Areas 2 | . . . . 1 1 Known Exits Taken . | . . . . . . Unknown Exits Taken 5 | 1 1 1 1 1 . Scrap Searched 2 | . . 1 . 1 . Spaces Dug . | . . . . . . Terrain Destroyed 32 | . 2 . 30 . . Melee . | . . . . . . Projectile . | . . . . . . AOE 32 | . 2 . 30 . . Terrain Rammed . | . . . . . . Walls Destroyed . | . . . . . . Machines Disabled . | . . . . . . Actions | -11 -10 -10 -9 -9 -9 --------- Run | Scr Mat Min Mat Min Exi Total 2397 | 74 428 530 731 419 215 Wait 261 | 6 20 41 121 73 . Move 1936 | 54 370 480 482 337 213 Hop . | . . . . . . Pick Up 52 | 8 11 3 26 4 . Fast Attach 11 | 4 1 . 6 . . Attach 9 | 2 1 . 5 . 1 Detach 1 | . 1 . . . . Swap 19 | . 2 1 16 . . Drop 40 | . 9 3 24 4 . Fire 61 | . 13 2 44 1 1 Melee . | . . . . . . Ram . | . . . . . . Kick . | . . . . . . Crush 7 | . . . 7 . . Escape Stasis . | . . . . . . Rewire . | . . . . . . Trap . | . . . . . . Miscellaneous . | . . . . . . Route ------- -11/Scrapyard -10/Materials (discovered 3 exits: *Mat x2 / [*Min]) -10/Mines (discovered 2 exits: *Mat x2) -9/Materials (discovered 3 exits: [*Mat] / [*Min x2]) -9/Mines (discovered 2 exits: [*Mat] / *Exi) -9/Exiles (discovered 2 exits: [*Min x2]) History --------- Turn | Location | Event 11 | -11/Scrapyard | Discovered new exit (range 13) 86 | -11/Scrapyard | Entered Materials 149 | -10/Materials | Discovered new exit (range 9) 304 | -10/Materials | Build established: Mutant 433 | -10/Materials | Discovered new exit (range 15) 610 | -10/Materials | Discovered new exit (range 15) 753 | -10/Materials | Entered Mines 756 | -10/Mines | Received a Mining Laser from a helpful Derelict 844 | -10/Mines | Discovered new exit (range 6) 1020 | -10/Mines | Discovered new exit (range 5) 1344 | -10/Mines | Received a Rocket Launcher from a helpful Derelict 1488 | -10/Mines | Found a damaged Exp. Sensor Array with a note attached 1492 | -10/Mines | Found Prototype Device 1574 | -10/Mines | Entered Materials 1574 | -9/Materials | Evolved 2 slots: Utility x1, Weapon x1 1610 | -9/Materials | Repaired Ion Engine? 1827 | -9/Materials | Discovered new exit (range 13) 2150 | -9/Materials | Discovered new exit (range 4) 2262 | -9/Materials | Discovered new exit (range 12) 2374 | -9/Materials | First assault squad dispatched 2383 | -9/Materials | Build established: Tank 2647 | -9/Materials | Entered Mines 2691 | -9/Mines | Assembled infested the area 2696 | -9/Mines | Assisted by a Guerilla fighting off Assembled 2976 | -9/Mines | Assisted by bots powering up and referring to "LRC-V3" 3080 | -9/Mines | Discovered new exit (range 5) 3139 | -9/Mines | Learned location of Storage (-8) 3210 | -9/Mines | Deemed a non-threat by the Exiles lab entrance 3211 | -9/Mines | Discovered new exit (range 5) 3218 | -9/Mines | Entered Exiles 3218 | -9/Exiles | Accompanied by 3 allies 3249 | -9/Exiles | Discovered new exit (range 14) 3290 | -9/Exiles | Met 8R-AWN 3310 | -9/Exiles | Met EX-HEX 3429 | -9/Exiles | Met EX-DEC 3430 | -9/Exiles | Attacked by the Exiles 3444 | -9/Exiles | Learned location of Zion (-7) 3481 | -9/Exiles | Core integrity fell below 50% 3481 | -9/Exiles | Released all parts (5) 3483 | -9/Exiles | Discovered new exit (range 10) 3492 | -9/Exiles | Core integrity fell below 20% 3498 | -9/Exiles | Destroyed by as-15087 with Assembled Rifle Last Messages --------------- runs. >>Record! "MSG004795-02" I just repaired it not long ago, I think someone on the outside is tampering with our system. --AM-PHS >>Record! "MSG004964-01" Who left my Assembled plushie in the Analyzer again?! I'm not erasing this message until I get an answer. --BIN 03445_ Mercenary 2a knocked back. 03446_ Lgt. Armor Plating destroyed. 03447_ Mercenary 2a knocked back. 03449_ Mercenary 2a destroyed. 03451_ Lgt. EM Pulse Cannon destroyed. 03472_ System corrupted: Energy discharge (-109). 03478_ Med. Armor Plating destroyed. 03481_ Released Lrg. Storage Unit. 03481_ Released Adv. Treads. 03481_ Released Lgt. EM Pulse Cannon. 03481_ Released Hvy. Ion Engine. 03483_ EXIT=FOUND 03487_ Knocked back. Map ----- +----------------------------------------------------+ | ?????????????????????????????????????????????????? | | ?????????????????????????????????????????????????? | | ?????????????????????????????????????????????????? | | ?????????????????????????????????????????????????? | | ??????#####??????????????????????????????????????? | | ?????## ##?????????????????????????????????????? | | ?????# #?????????????????????????????????????? | | ?????# < #?????????????????????????????????????? | | ?????# ###???????????????????????????????????? | | ?????# #???????????????????????????????????? | | ?????# ##???????????????????????????????????? | | ?????## #????????????????????????????????????? | | ??????# ##???????????????????????????????????? | | ??????## #????????????#######????????????????? | | ???????# #######??????#!!! "#????????????????? | | ???????# #""##?????# "#????????????????? | | ???????## #?????# "#????????????????? | | ????????##" = ##???## ""#?????????????#??? | | ????????#"" ]!! #####" ""#????????????? """ | | ????????#### =[![] ##" ""#????????????? """ | | ???????????## *a[a #" #??????????????" | | ????????????#"## = aa a #?????????????"" | | ????????????####### a a ##????????????"" " | | ??????????????????### "#???????????? "" | | ????????????????####" ###???????????" "? | | ????????????????""""" @ ##??????????# #? | | ????????????#! "###"" ######???### ## | | ????????????#! "#?##" """#####X# #" | | ????????????#! ##??#" " | | ????????????# !""""""###???#"# " | | ????????????#########??????#### | | ??????????????????????????????### | | ????????????????????????????????### | | ??????????????????????????????????## % | | ???????????????????????????????????## | | ????????????????????????????????????##" % | | ?????????????????????????????????????#""" | | ?????????????????????????????????????#" %% | | ?????????????????????????????????????"" | | ?????????????????????????????????????"" % | | ?????????????????????????????????????"" | | ?????????????????????????????????????"" | | ?????????????????????????????????????" | | ?????????????????????????????????????"" | | ?????????????????????????????????????? | | ?????????????????????????????????????"" | | ???????????????????????????????????????"" | | ????????????????????????????????????????? | | ?????????????????????????????????????????? | | ?????????????????????????????????????????? | +----------------------------------------------------+ Best States ------------- Heat Dissipation 50 Energy Generation 14 Energy Capacity 280 Matter Stores 300 Matter Capacity 300 Sight Range 16 Terrain Scan Density 10 Armor Coverage 225 Evasion (%) 50 Recoil Reduction 2 Item Schematics ----------------- None Robot Schematics ------------------ None Fabricated ------------ Nothing Alien Tech Used ----------------- None Achievements -------------- Fist Fight I Survived The Infestation Challenges ------------ None Game ------ Seed ArmoredDimensionalCorpse Manual? 0 Play Time 00:46:47 Cumulative 10.4 hours Start 2021.12.19 @ 17:49:57 End 2021.12.19 @ 18:39:35 Sessions 1 Manual Loads 0 Difficulty Rogue Special Mode None Game No. 7 Rogue 7 Adventurer 0 Explorer 0 Win Type - Total 0 Types 0/0/0/0/0/0/0/0/0 Lore% 18 Gallery% 19 Achievement% 18 Wizard Run 0 Options --------- ASCII 1 Keyboard 1 Movement Vi Keybinds 0 Fullscreen 1 Font 18/X11 Map View 76x50 Tactical HUD 1 Map Filters NONE Filters NONE Steam 1 RUN: 60528953-2432-4a04-85c6-37d1cb96e267